[Event "Czech Youth U16 Boys 2024"]
[Site "Kouty nad Desnou"]
[Date "2024.03.13"]
[Round "6.4"]
[White "Andrle, Filip"]
[Black "Vysinsky, Otakar"]
[Result "1-0"]
[ECO "C55"]
[WhiteElo "1943"]
[BlackElo "1882"]
[Annotator "RC"]
[PlyCount "67"]
[EventDate "2024.03.10"]
[EventType "swiss"]
[EventCountry "CZE"]
[SourceTitle "playchess.com"]
[Source "ChessBase"]
[SourceQuality "1"]
[TimeControl "40/5400+30:1800+30"]

1. e4 {[%emt 0:00:25]} e5 {[%emt 0:00:09]} 2. Nf3 {[%emt 0:00:12]} Nc6 {[%emt 0:00:05]} 3. Bc4 {[%emt 0:00:36]} Nf6 {[%emt 0:00:06]} 4. d3 {[%emt 0:00:12]} Be7 {[%emt 0:00:06]} 5. O-O {[%emt 0:00:21]} O-O {[%emt 0:00:06]} 6. a4 {[%emt 0:00:43]} d6 {[%emt 0:05:00]} 7. Re1 {[%emt 0:02:28]} Be6 {[%emt 0:07:58]} 8. Nbd2 {[%emt 0:04:38]} Nd7 {[%emt 0:02:54]} 9. c3 {[%emt 0:04:19]} Bxc4 {[%emt 0:04:02]} 10. Nxc4 {[%emt 0:01:39]} f5 {[%emt 0:07:04]} 11. Ne3 {[%emt 0:16:47]} fxe4 {[%emt 0:02:44]} 12. dxe4 {[%emt 0:00:15]} Kh8 {[%emt 0:02:54]} 13. Nd5 {[%emt 0:02:24]} Nb6 {[%emt 0:12:03]} 14. a5 {[%emt 0:15:43]} Nxd5 {[%emt 0:00:18]} 15. exd5 {[%emt 0:03:42]} Nb8 {[%emt 0:00:07]} 16. Nd2 {[%emt 0:05:47]} Nd7 {[%emt 0:09:28]} 17. Ne4 {[%emt 0:00:42]} Qe8 {[%emt 0:01:57]} 18. Qg4 {[%emt 0:20:30]} Nf6 {[%emt 0:01:26]} 19. Nxf6 {[%emt 0:02:52]} gxf6 {[%emt 0:08:50]} 20. Qf5 {[%emt 0:06:02]} Rg8 {[%emt 0:02:31]} 21. Re4 {[%emt 0:02:25]} Qf7 {[%emt 0:10:07]} 22. Rh4 {[%emt 0:02:53]} Rg6 {[%emt 0:01:22]} 23. c4 {[%emt 0:01:58]} Rag8 {[%emt 0:03:59]} 24. g3 {[%emt 0:00:20]} Bd8 {[%emt 0:04:54]} 25. Be3 {[%emt 0:01:12]} c6 {[%emt 0:00:48]} 26. a6 {[%emt 0:00:38]} c5 {[%emt 0:05:23]} 27. Kg2 {[%emt 0:01:49]} b5 {[%emt 0:00:55]} 28. b3 {[%emt 0:00:20]} b4 {[%emt 0:02:23]} 29. Ra2 {[%emt 0:00:55]} Qg7 {[%emt 0:01:16]} 30. Bc1 {[%emt 0:01:23]} Rf8 {[%emt 0:03:43]} 31. Re2 {[%emt 0:00:53]} Rg8 {[%emt 0:00:47]} 32. Ree4 {[%emt 0:00:26]} Rf8 {[%emt 0:00:28]} 33. Rh5 {[%emt 0:00:12]} Qc7 {[%emt 0:00:34]} 34. Qxg6 {[%emt 0:00:31]} 1-0

[Event "Czech Youth U16 Boys 2024"]
[Site "Kouty nad Desnou"]
[Date "2024.03.13"]
[Round "6.5"]
[White "Ulcak, Michael"]
[Black "Stein, Michael"]
[Result "1/2-1/2"]
[ECO "D32"]
[WhiteElo "1929"]
[BlackElo "1883"]
[Annotator "RC"]
[PlyCount "87"]
[EventDate "2024.03.10"]
[EventType "swiss"]
[EventCountry "CZE"]
[SourceTitle "playchess.com"]
[Source "ChessBase"]
[SourceQuality "1"]
[TimeControl "40/5400+30:1800+30"]

1. d4 {[%emt 0:00:05]} d5 {[%emt 0:00:07]} 2. c4 {[%emt 0:00:10]} e6 {[%emt 0:00:06]} 3. Nc3 {[%emt 0:00:07]} c5 {[%emt 0:00:14]} 4. cxd5 {[%emt 0:01:19]} exd5 {[%emt 0:00:08]} 5. Nf3 {[%emt 0:02:18]} Nf6 {[%emt 0:02:22]} 6. Bg5 {[%emt 0:02:06]} cxd4 {[%emt 0:05:57]} 7. Bxf6 {[%emt 0:06:55]} Qxf6 {[%emt 0:07:44]} 8. Nxd5 {[%emt 0:02:30]} Qd8 {[%emt 0:02:20]} 9. Qxd4 {[%emt 0:03:43]} Be6 {[%emt 0:03:27]} 10. Nc3 {[%emt 0:02:03]} Nc6 {[%emt 0:05:02]} 11. Qxd8+ {[%emt 0:05:32]} Rxd8 {[%emt 0:00:11]} 12. a3 {[%emt 0:00:16]} Be7 {[%emt 0:02:21]} 13. e3 {[%emt 0:01:25]} O-O {[%emt 0:01:52]} 14. Be2 {[%emt 0:01:15]} Bf6 {[%emt 0:01:34]} 15. Rc1 {[%emt 0:00:42]} Na5 {[%emt 0:04:13]} 16. O-O {[%emt 0:06:17]} Bc4 {[%emt 0:07:57]} 17. b4 {[%emt 0:09:24]} Bxe2 {[%emt 0:02:17]} 18. Nxe2 {[%emt 0:00:14]} Nc6 {[%emt 0:01:33]} 19. Rc2 {[%emt 0:07:18]} Rd3 {[%emt 0:03:17]} 20. Ra2 {[%emt 0:06:01]} Rfd8 {[%emt 0:02:08]} 21. b5 {[%emt 0:03:11]} Na5 {[%emt 0:03:58]} 22. Ned4 {[%emt 0:04:17]} Nb3 {[%emt 0:03:34]} 23. Nxb3 {[%emt 0:01:49]} Rxb3 {[%emt 0:00:28]} 24. a4 {[%emt 0:00:42]} Rc8 {[%emt 0:02:04]} 25. Rd1 {[%emt 0:07:44]} Rb4 {[%emt 0:03:10]} 26. Kf1 {[%emt 0:03:54]} Rc7 {[%emt 0:05:22]} 27. Ke2 {[%emt 0:04:07]} Kf8 {[%emt 0:01:33]} 28. Rd3 {[%emt 0:08:22]} Ke8 {[%emt 0:04:56]} 29. Nd2 {[%emt 0:01:05]} Rd7 {[%emt 0:03:59]} 30. Rxd7 {[%emt 0:00:54]} Kxd7 {[%emt 0:00:06]} 31. Kd3 {[%emt 0:01:03]} g6 {[%emt 0:03:05]} 32. Ne4 {[%emt 0:01:43]} Bg7 {[%emt 0:01:41]} 33. Nc5+ {[%emt 0:00:19]} Kc7 {[%emt 0:02:04]} 34. Rc2 {[%emt 0:04:08]} Kb6 {[%emt 0:03:35]} 35. e4 {[%emt 0:03:44]} Rd4+ {[%emt 0:02:17]} 36. Ke3 {[%emt 0:00:02]} Rd1 {[%emt 0:00:53]} 37. Nd3 {[%emt 0:01:28]} Ra1 {[%emt 0:00:46]} 38. Rc4 {[%emt 0:00:26]} Ra3 {[%emt 0:01:51]} 39. Ke2 {[%emt 0:00:25]} Ra2+ {[%emt 0:00:20]} 40. Kf3 {[%emt 0:00:38]} Ra3 {[%emt 0:00:56]} 41. Ke2 {[%emt 0:02:50]} Ra2+ {[%emt 0:00:19]} 42. Ke3 {[%emt 0:01:11]} Ra3 {[%emt 0:01:24]} 43. g3 {[%emt 0:02:56]} Bf6 {[%emt 0:06:13]} 44. e5 {[%emt 0:01:19]} 1/2-1/2

[Event "Czech Youth U16 Boys 2024"]
[Site "Kouty nad Desnou"]
[Date "2024.03.13"]
[Round "6.6"]
[White "Davidek, Zdenek"]
[Black "Zrubek, Dan"]
[Result "0-1"]
[ECO "D96"]
[WhiteElo "2135"]
[BlackElo "1882"]
[Annotator "RC"]
[PlyCount "48"]
[EventDate "2024.03.10"]
[EventType "swiss"]
[EventCountry "CZE"]
[SourceTitle "playchess.com"]
[Source "ChessBase"]
[SourceQuality "1"]
[TimeControl "40/5400+30:1800+30"]

1. d4 {[%emt 0:00:04]} Nf6 {[%emt 0:00:11]} 2. c4 {[%emt 0:00:05]} g6 {[%emt 0:00:31]} 3. Nc3 {[%emt 0:00:13]} d5 {[%emt 0:00:37]} 4. Nf3 {[%emt 0:00:06]} Bg7 {[%emt 0:02:22]} 5. Qb3 {[%emt 0:00:07]} c6 {[%emt 0:07:10]} 6. cxd5 {[%emt 0:00:06]} cxd5 {[%emt 0:11:42]} 7. Bg5 {[%emt 0:00:07]} e6 {[%emt 0:17:41]} 8. e3 {[%emt 0:00:43]} O-O {[%emt 0:02:24]} 9. h3 {[%emt 0:01:46]} Nc6 {[%emt 0:05:52]} 10. Bd3 {[%emt 0:03:21]} a6 {[%emt 0:08:04]} 11. O-O {[%emt 0:10:10]} b5 {[%emt 0:06:19]} 12. Ne5 {[%emt 0:25:32]} Na5 {[%emt 0:08:25]} 13. Qc2 {[%emt 0:00:50]} Qb6 {[%emt 0:03:16]} 14. a4 {[%emt 0:08:44]} b4 {[%emt 0:03:33]} 15. Ne2 {[%emt 0:00:21]} Re8 {[%emt 0:02:03]} 16. Rfc1 {[%emt 0:06:57]} Nd7 {[%emt 0:04:19]} 17. Nxd7 {[%emt 0:16:03]} Bxd7 {[%emt 0:00:08]} 18. Qc7 {[%emt 0:00:14]} Qxc7 {[%emt 0:00:59]} 19. Rxc7 {[%emt 0:00:02]} Bc6 {[%emt 0:00:53]} 20. Rc1 {[%emt 0:00:40]} Bxa4 {[%emt 0:04:21]} 21. Ra1 {[%emt 0:09:59]} Bb5 {[%emt 0:00:34]} 22. Nc1 {[%emt 0:01:03]} Nc4 {[%emt 0:04:58]} 23. b3 {[%emt 0:06:00]} Nd6 {[%emt 0:01:16]} 24. Bxb5 {[%emt 0:01:58]} Nxb5 0-1

[Event "Czech Youth U16 Boys 2024"]
[Site "Kouty nad Desnou"]
[Date "2024.03.13"]
[Round "6.7"]
[White "Setina, Vaclav"]
[Black "Hozda, Max"]
[Result "1/2-1/2"]
[ECO "A56"]
[WhiteElo "2024"]
[BlackElo "2032"]
[Annotator "RC"]
[PlyCount "76"]
[EventDate "2024.03.10"]
[EventType "swiss"]
[EventCountry "CZE"]
[SourceTitle "playchess.com"]
[Source "ChessBase"]
[SourceQuality "1"]
[TimeControl "40/5400+30:1800+30"]

1. d4 {[%emt 0:00:01]} Nf6 {[%emt 0:00:59]} 2. c4 {[%emt 0:00:03]} c5 {[%emt 0:03:55]} 3. e3 {[%emt 0:01:04]} g6 {[%emt 0:04:44]} 4. Nf3 {[%emt 0:00:26]} Bg7 {[%emt 0:00:10]} 5. Be2 {[%emt 0:00:24]} O-O {[%emt 0:00:16]} 6. O-O {[%emt 0:00:02]} cxd4 {[%emt 0:02:07]} 7. exd4 d5 8. b3 {[%emt 0:04:54]} Nc6 {[%emt 0:01:54]} 9. Bb2 {[%emt 0:00:26]} b6 {[%emt 0:03:59]} 10. Nc3 {[%emt 0:03:56]} Bb7 {[%emt 0:02:05]} 11. Qd2 {[%emt 0:13:34]} Ne4 {[%emt 0:14:33]} 12. Qe3 {[%emt 0:01:02]} Nxc3 {[%emt 0:00:20]} 13. Bxc3 {[%emt 0:00:06]} e6 {[%emt 0:01:27]} 14. Rfd1 {[%emt 0:00:34]} Rc8 {[%emt 0:06:11]} 15. Rac1 {[%emt 0:00:50]} Re8 {[%emt 0:03:46]} 16. Ne5 {[%emt 0:02:35]} Nxe5 {[%emt 0:10:12]} 17. dxe5 {[%emt 0:00:59]} Qe7 {[%emt 0:02:44]} 18. cxd5 {[%emt 0:10:07]} Bxd5 {[%emt 0:01:55]} 19. f4 {[%emt 0:10:56]} Bf8 {[%emt 0:05:21]} 20. Ba6 {[%emt 0:11:02]} Rc7 {[%emt 0:02:31]} 21. Bd4 {[%emt 0:01:39]} Rxc1 {[%emt 0:09:46]} 22. Qxc1 {[%emt 0:03:29]} Qa3 {[%emt 0:02:52]} 23. Qxa3 {[%emt 0:00:18]} Bxa3 {[%emt 0:00:03]} 24. g3 {[%emt 0:06:43]} Re7 {[%emt 0:01:06]} 25. Kf2 {[%emt 0:05:38]} Rc7 {[%emt 0:03:37]} 26. Bd3 {[%emt 0:00:25]} h5 {[%emt 0:05:34]} 27. Ke2 {[%emt 0:03:38]} Kf8 {[%emt 0:00:20]} 28. Rd2 {[%emt 0:02:05]} Ke7 {[%emt 0:02:19]} 29. Rc2 {[%emt 0:01:44]} Rxc2+ {[%emt 0:00:27]} 30. Bxc2 {[%emt 0:00:01]} Kd7 {[%emt 0:00:51]} 31. Bd3 {[%emt 0:00:45]} Kc6 {[%emt 0:01:21]} 32. Kd2 {[%emt 0:00:15]} a5 {[%emt 0:01:00]} 33. Kc2 {[%emt 0:00:42]} Bc5 {[%emt 0:04:19]} 34. Kc3 {[%emt 0:11:11]} b5 {[%emt 0:00:07]} 35. Bc2 {[%emt 0:01:49]} Ba3 {[%emt 0:03:03]} 36. Kd3 {[%emt 0:01:56]} Bc5 {[%emt 0:01:32]} 37. Ke3 {[%emt 0:00:43]} Ba3 {[%emt 0:00:53]} 38. Bd1 {[%emt 0:01:05]} Bc5 1/2-1/2

[Event "Czech Youth U16 Boys 2024"]
[Site "Kouty nad Desnou"]
[Date "2024.03.13"]
[Round "6.8"]
[White "Rybackova, Lucie"]
[Black "Pressler, Tobias"]
[Result "1/2-1/2"]
[ECO "A20"]
[WhiteElo "1983"]
[BlackElo "1954"]
[Annotator "RC"]
[PlyCount "83"]
[EventDate "2024.03.10"]
[EventType "swiss"]
[EventCountry "CZE"]
[SourceTitle "playchess.com"]
[Source "ChessBase"]
[SourceQuality "1"]
[TimeControl "40/5400+30:1800+30"]

1. c4 {[%emt 0:00:07]} e5 {[%emt 0:00:17]} 2. e3 {[%emt 0:00:10]} Nf6 {[%emt 0:04:47]} 3. a3 {[%emt 0:00:20]} d6 {[%emt 0:01:00]} 4. Qc2 {[%emt 0:03:53]} g6 {[%emt 0:00:20]} 5. Nc3 {[%emt 0:00:49]} Bg7 {[%emt 0:00:21]} 6. Nf3 {[%emt 0:03:14]} O-O {[%emt 0:01:27]} 7. Be2 {[%emt 0:03:44]} Re8 {[%emt 0:02:11]} 8. d3 {[%emt 0:00:43]} b6 {[%emt 0:07:21]} 9. O-O {[%emt 0:08:32]} Bb7 {[%emt 0:00:07]} 10. Nd2 {[%emt 0:08:47]} Nbd7 {[%emt 0:03:55]} 11. b4 {[%emt 0:07:02]} d5 {[%emt 0:07:38]} 12. cxd5 {[%emt 0:05:10]} Nxd5 {[%emt 0:00:28]} 13. Nxd5 {[%emt 0:03:58]} Bxd5 {[%emt 0:00:10]} 14. Bb2 {[%emt 0:00:20]} c5 {[%emt 0:02:05]} 15. Bf3 {[%emt 0:02:34]} Bxf3 {[%emt 0:00:47]} 16. Nxf3 {[%emt 0:00:02]} Qe7 {[%emt 0:01:12]} 17. Qb3 {[%emt 0:02:55]} Rac8 {[%emt 0:23:09]} 18. Rac1 {[%emt 0:04:22]} Rc7 {[%emt 0:13:27]} 19. Rc2 {[%emt 0:03:42]} Rec8 {[%emt 0:00:30]} 20. Rfc1 {[%emt 0:00:27]} Qd6 {[%emt 0:03:57]} 21. Ng5 {[%emt 0:10:22]} Nf6 {[%emt 0:01:21]} 22. bxc5 {[%emt 0:02:27]} bxc5 {[%emt 0:00:04]} 23. Nf3 {[%emt 0:01:04]} Nd5 {[%emt 0:00:40]} 24. Nd2 {[%emt 0:02:05]} Nb6 {[%emt 0:06:19]} 25. Ne4 {[%emt 0:04:41]} Qe7 {[%emt 0:00:11]} 26. a4 {[%emt 0:02:40]} Nd7 {[%emt 0:00:37]} 27. Ba3 {[%emt 0:00:51]} Bf8 {[%emt 0:00:25]} 28. a5 {[%emt 0:02:07]} Kg7 {[%emt 0:03:15]} 29. Rc4 {[%emt 0:04:20]} f5 {[%emt 0:00:57]} 30. Nc3 {[%emt 0:00:33]} Rb8 {[%emt 0:01:45]} 31. Qc2 {[%emt 0:01:10]} Qe6 {[%emt 0:00:45]} 32. Rb1 {[%emt 0:03:00]} Rcb7 {[%emt 0:00:32]} 33. Rxb7 {[%emt 0:00:16]} Rxb7 {[%emt 0:00:04]} 34. Na4 {[%emt 0:01:37]} Rb5 {[%emt 0:00:14]} 35. Nxc5 {[%emt 0:01:28]} Bxc5 {[%emt 0:02:18]} 36. Bxc5 {[%emt 0:00:42]} Rxa5 {[%emt 0:00:07]} 37. h3 {[%emt 0:01:34]} Nxc5 {[%emt 0:13:14]} 38. Rxc5 {[%emt 0:01:44]} Rxc5 {[%emt 0:00:13]} 39. Qxc5 {[%emt 0:00:02]} a6 {[%emt 0:00:05]} 40. Kh2 {[%emt 0:01:49]} Qf6 {[%emt 0:01:09]} 41. Qa7+ {[%emt 0:34:49]} Kh6 {[%emt 0:30:07]} 42. Qc5 {[%emt 0:00:00]} 1/2-1/2

[Event "Czech Youth U16 Boys 2024"]
[Site "Kouty nad Desnou"]
[Date "2024.03.13"]
[Round "6.9"]
[White "Buchtova, Viktorie"]
[Black "Zemek, Antonin"]
[Result "0-1"]
[ECO "C12"]
[WhiteElo "1874"]
[BlackElo "1870"]
[Annotator "NA"]
[PlyCount "90"]
[EventDate "2024.03.10"]
[EventType "swiss"]
[EventCountry "CZE"]
[SourceTitle "playchess.com"]
[Source "ChessBase"]
[SourceQuality "1"]
[TimeControl "40/5400+30:1800+30"]

1. e4 {[%emt 0:00:03]} e6 {[%emt 0:00:25]} 2. d4 {[%emt 0:00:05]} d5 {[%emt 0:00:18]} 3. Nc3 {[%emt 0:00:09]} Nf6 {[%emt 0:00:29]} 4. Bg5 {[%emt 0:00:22]} Bb4 {[%emt 0:17:36]} 5. e5 {[%emt 0:01:10]} h6 {[%emt 0:00:35]} 6. Bd2 {[%emt 0:00:35]} Nfd7 {[%emt 0:01:45]} 7. Qg4 {[%emt 0:01:56]} g6 {[%emt 0:03:33] C12: French: Classical System: McCutcheon Variation.} 8. Bd3 {[%emt 0:04:01]} Qe7 {[%emt 0:05:02]} 9. Nf3 {[%emt 0:12:11]} c5 {[%emt 0:05:39]} 10. Nb5 {[%emt 0:31:34]} c4 $2 {[%emt 0:06:30] [#]} (10... Bxd2+ $16 {keeps fighting.} 11. Kxd2 (11. Nxd2 O-O $14) 11... Kd8) 11. Bxg6 {[%emt 0:14:35]} Bxd2+ {[%emt 0:12:41]} 12. Nxd2 {[%emt 0:01:09]} (12. Kxd2 $142 Kd8 13. Bh5) 12... Rg8 {[%emt 0:17:05] [#]} 13. Bxf7+ $1 {[%emt 0:05:01]} Kxf7 {[%emt 0:02:24]} 14. Qf4+ {[%emt 0:04:44]} Kg7 {[%emt 0:01:29]} 15. Nc7 Na6 {[%emt 0:01:31]} 16. Nxa8 {[%emt 0:02:03]} Nf8 {[%emt 0:03:09]} (16... b5 $16 17. Qe3 Ndb8) 17. O-O {[%emt 0:06:54]} Ng6 {[%emt 0:01:35]} 18. Qe3 {[%emt 0:01:03]} Bd7 {[%emt 0:00:52] [#]} 19. b3 {[%emt 0:01:31]} Nb4 {[%emt 0:04:31]} 20. Qc3 {[%emt 0:02:44]} Rxa8 {[%emt 0:01:05]} 21. a3 {[%emt 0:00:30]} Na6 {[%emt 0:00:43]} 22. bxc4 {[%emt 0:00:23]} dxc4 {[%emt 0:00:07]} 23. Nxc4 {[%emt 0:00:50]} (23. Qxc4 $16 Nf4 24. Kh1) 23... Rc8 {[%emt 0:01:30]} 24. Qb3 {[%emt 0:00:16]} Bc6 {[%emt 0:00:43]} 25. Nd6 {[%emt 0:00:40]} Rg8 $2 {[%emt 0:00:50]} (25... Rf8 $16 {ist eine bessere Verteidigung.}) 26. Qe3 {[%emt 0:03:49]} Kh7 {[%emt 0:02:02]} 27. Ne4 {[%emt 0:01:32]} Qh4 {[%emt 0:00:51]} 28. Nf6+ {[%emt 0:01:14]} Kh8 {[%emt 0:01:42]} 29. Qg3 {[%emt 0:00:45]} Rg7 {[%emt 0:01:51]} 30. f3 {[%emt 0:01:33]} Qxd4+ {[%emt 0:00:47]} 31. Qf2 {[%emt 0:00:50]} Qxe5 {[%emt 0:00:40]} 32. Ng4 {[%emt 0:00:07]} Qg5 {[%emt 0:01:06]} 33. Rad1 {[%emt 0:00:36]} Nf4 {[%emt 0:01:04]} 34. h4 {[%emt 0:01:05] [#]} Qf5 $1 {[%emt 0:01:20]} 35. Kh2 {[%emt 0:00:56]} h5 {[%emt 0:09:47]} 36. Ne3 {[%emt 0:00:03]} Qf6 {[%emt 0:00:57]} 37. g3 {[%emt 0:01:14] [#]} Ng6 $1 {[%emt 0:00:14]} 38. Rd3 $2 {[%emt 0:00:41]} (38. Qd2 $17) 38... Nc5 $19 {[%emt 0:00:24]} 39. Rc3 {[%emt 0:00:24]} Qxc3 {[%emt 0:00:17]} 40. Rd1 {[%emt 0:00:04]} Qf6 {[%emt 0:00:11]} 41. Nc4 {[%emt 0:02:52]} Nxh4 {[%emt 0:06:39]} 42. gxh4 {[%emt 0:00:56]} Qf4+ {[%emt 0:00:32]} 43. Kh3 {[%emt 0:00:22]} Ne4 {[%emt 0:00:42]} 44. Qe1 {[%emt 0:01:13]} Rg3+ {[%emt 0:00:57]} 45. Kh2 {[%emt 0:00:11]} Qxh4# {[%emt 0:00:09]} 0-1

[Event "Czech Youth U16 Boys 2024"]
[Site "Kouty nad Desnou"]
[Date "2024.03.13"]
[Round "6.10"]
[White "Zelba, Lukas"]
[Black "Zezula, Matej"]
[Result "1/2-1/2"]
[ECO "B30"]
[WhiteElo "1979"]
[BlackElo "1825"]
[Annotator "ChessBase"]
[PlyCount "145"]
[EventDate "2024.03.10"]
[EventType "swiss"]
[EventCountry "CZE"]
[SourceTitle "playchess.com"]
[Source "ChessBase"]
[SourceQuality "1"]
[TimeControl "40/5400+30:1800+30"]

1. e4 {[%emt 0:00:14]} c5 {[%emt 0:00:31]} 2. Nf3 {[%emt 0:00:05]} Nc6 {[%emt 0:00:15]} 3. Bb5 {[%emt 0:02:12]} d6 {[%emt 0:01:01]} 4. c3 {[%emt 0:03:19]} a6 {[%emt 0:05:50]} 5. Be2 {[%emt 0:01:00]} Nf6 {[%emt 0:04:31]} 6. d4 {[%emt 0:04:18]} cxd4 {[%emt 0:08:55]} 7. cxd4 {[%emt 0:00:03]} g6 {[%emt 0:22:43]} 8. O-O {[%emt 0:04:53]} Bg7 {[%emt 0:00:13]} 9. Nc3 {[%emt 0:03:31]} O-O {[%emt 0:00:19]} 10. d5 {[%emt 0:09:12]} Nb8 {[%emt 0:00:51]} 11. a4 {[%emt 0:03:59]} Bg4 {[%emt 0:04:06]} 12. Be3 {[%emt 0:05:23]} Nbd7 {[%emt 0:01:37]} 13. h3 {[%emt 0:00:42]} Bxf3 {[%emt 0:00:20]} 14. Bxf3 {[%emt 0:00:03]} Ne5 {[%emt 0:01:23]} 15. Be2 {[%emt 0:02:01]} Rc8 {[%emt 0:03:40]} 16. Qb3 {[%emt 0:01:03]} Qc7 {[%emt 0:07:02]} 17. Rac1 {[%emt 0:16:24]} Qb8 {[%emt 0:00:54]} 18. a5 {[%emt 0:03:52]} Ned7 {[%emt 0:01:33]} 19. Qb4 {[%emt 0:12:22]} Nc5 {[%emt 0:05:06]} 20. e5 {[%emt 0:03:13]} Nfd7 {[%emt 0:01:27]} 21. exd6 {[%emt 0:01:14]} Qxd6 {[%emt 0:03:42]} 22. Rfd1 {[%emt 0:04:51]} Rfd8 {[%emt 0:04:29]} 23. Na4 {[%emt 0:02:34]} Nxa4 {[%emt 0:02:20]} 24. Qxa4 {[%emt 0:00:22]} Bxb2 {[%emt 0:07:52]} 25. Rxc8 {[%emt 0:02:13]} Rxc8 {[%emt 0:00:13]} 26. Qb3 {[%emt 0:00:04]} Be5 {[%emt 0:01:37]} 27. Qxb7 {[%emt 0:00:16]} Rb8 {[%emt 0:02:12]} 28. Qxa6 {[%emt 0:00:20]} Qxa6 {[%emt 0:00:24]} 29. Bxa6 {[%emt 0:00:04]} Bc3 {[%emt 0:02:11]} 30. Bf4 {[%emt 0:03:57]} Ra8 {[%emt 0:03:25]} 31. Bb5 {[%emt 0:00:13]} Nc5 {[%emt 0:01:09]} 32. Bc7 {[%emt 0:02:25]} Bb4 {[%emt 0:01:41]} 33. Rb1 {[%emt 0:02:36]} Bxa5 {[%emt 0:02:12]} 34. Ra1 {[%emt 0:00:22]} Nb3 {[%emt 0:00:14]} 35. Ra3 {[%emt 0:00:12]} Ra7 {[%emt 0:00:16]} 36. Bf4 {[%emt 0:00:45]} Nd4 {[%emt 0:00:55]} 37. Bd3 {[%emt 0:03:20]} Bb6 {[%emt 0:00:44]} 38. Rxa7 {[%emt 0:00:09]} Bxa7 {[%emt 0:00:06]} 39. d6 {[%emt 0:00:16]} exd6 {[%emt 0:00:57]} 40. Bxd6 {[%emt 0:00:11]} Ne6 {[%emt 0:00:22]} 41. g3 {[%emt 0:34:56]} Bd4 {[%emt 0:30:35]} 42. Kg2 {[%emt 0:00:00]} Kg7 {[%emt 0:00:00]} 43. g4 {[%emt 0:00:00]} Bb2 {[%emt 0:00:00]} 44. Bc4 {[%emt 0:00:00]} Ng5 {[%emt 0:00:00]} 45. Bd5 {[%emt 0:00:00]} f6 {[%emt 0:00:00]} 46. Bc7 {[%emt 0:00:00]} Bc3 {[%emt 0:00:00]} 47. f4 {[%emt 0:00:00]} Nf7 {[%emt 0:00:00]} 48. Kf3 {[%emt 0:00:00]} g5 {[%emt 0:00:00]} 49. fxg5 {[%emt 0:01:02]} Nxg5+ {[%emt 0:00:00]} 50. Kg2 {[%emt 0:00:59]} Be1 {[%emt 0:00:00]} 51. Bd8 {[%emt 0:00:29]} Kg6 {[%emt 0:00:00]} 52. Bc4 {[%emt 0:00:48]} h6 {[%emt 0:00:00]} 53. Bb3 {[%emt 0:00:48]} Kg7 {[%emt 0:00:41]} 54. Bd5 {[%emt 0:00:35]} Bc3 {[%emt 0:03:29]} 55. h4 {[%emt 0:01:04]} Nf7 {[%emt 0:00:17]} 56. Bxf7 {[%emt 0:00:41]} Kxf7 {[%emt 0:00:08]} 57. Kf3 {[%emt 0:00:08]} Ke6 {[%emt 0:01:37]} 58. Ke4 {[%emt 0:00:29]} Be1 {[%emt 0:00:48]} 59. h5 {[%emt 0:00:09]} Bd2 {[%emt 0:00:38]} 60. Bc7 {[%emt 0:01:20]} Bb4 {[%emt 0:01:04]} 61. Bf4 {[%emt 0:00:30]} Bf8 {[%emt 0:00:14]} 62. Bc1 {[%emt 0:00:24]} Bg7 {[%emt 0:00:50]} 63. Ba3 {[%emt 0:00:04]} Kf7 {[%emt 0:00:14]} 64. Kf5 {[%emt 0:00:07]} Bh8 {[%emt 0:00:20]} 65. Bc1 {[%emt 0:00:12]} Bg7 {[%emt 0:00:11]} 66. Bd2 {[%emt 0:01:24]} Bf8 {[%emt 0:00:16]} 67. Bc3 {[%emt 0:00:08]} Bg7 {[%emt 0:01:09]} 68. Bd4 {[%emt 0:01:13]} Bh8 {[%emt 0:00:24]} 69. g5 {[%emt 0:00:24]} hxg5 {[%emt 0:00:22]} 70. h6 {[%emt 0:00:13]} Bg7 {[%emt 0:01:05]} 71. h7 {[%emt 0:00:20]} Bh8 {[%emt 0:00:08]} 72. Bc3 {[%emt 0:01:07]} Kg7 {[%emt 0:00:41]} 73. Bxf6+ {[%emt 0:00:17]} 1/2-1/2

[Event "Czech Youth U16 Boys 2024"]
[Site "Kouty nad Desnou"]
[Date "2024.03.13"]
[Round "6.11"]
[White "Buchta, Bartolomej"]
[Black "Mikolas, Petr"]
[Result "1/2-1/2"]
[ECO "C02"]
[WhiteElo "1913"]
[BlackElo "1957"]
[Annotator "RC"]
[PlyCount "63"]
[EventDate "2024.03.10"]
[EventType "swiss"]
[EventCountry "CZE"]
[SourceTitle "playchess.com"]
[Source "ChessBase"]
[SourceQuality "1"]
[TimeControl "40/5400+30:1800+30"]

1. e4 {[%emt 0:00:03]} e6 {[%emt 0:00:11]} 2. d4 {[%emt 0:00:05]} d5 {[%emt 0:00:04]} 3. e5 {[%emt 0:00:06]} c5 {[%emt 0:00:06]} 4. c3 {[%emt 0:00:03]} Nc6 {[%emt 0:00:07]} 5. Nf3 {[%emt 0:00:05]} Qb6 {[%emt 0:00:26]} 6. Be2 {[%emt 0:00:04]} cxd4 {[%emt 0:00:07]} 7. cxd4 {[%emt 0:00:04]} Nh6 {[%emt 0:00:21]} 8. Na3 {[%emt 0:00:14]} Bxa3 {[%emt 0:00:06]} 9. bxa3 {[%emt 0:00:03]} Nf5 {[%emt 0:00:06]} 10. Be3 {[%emt 0:00:06]} Nxe3 {[%emt 0:00:11]} 11. fxe3 {[%emt 0:00:03]} Qa5+ {[%emt 0:00:06]} 12. Qd2 {[%emt 0:00:03]} Bd7 {[%emt 0:00:12]} 13. O-O {[%emt 0:00:54]} Qxd2 {[%emt 0:00:05]} 14. Nxd2 {[%emt 0:00:05]} Ke7 {[%emt 0:00:16]} 15. Rf2 {[%emt 0:10:14]} Rhf8 {[%emt 0:09:05]} 16. Raf1 {[%emt 0:02:20]} f6 {[%emt 0:09:48]} 17. exf6+ {[%emt 0:03:46]} Rxf6 {[%emt 0:02:52]} 18. Rxf6 {[%emt 0:01:18]} gxf6 {[%emt 0:00:06]} 19. Nb3 {[%emt 0:02:44]} b6 {[%emt 0:08:37]} 20. Bd3 {[%emt 0:00:09]} h6 {[%emt 0:06:03]} 21. Rb1 {[%emt 0:04:37]} Rc8 {[%emt 0:10:13]} 22. Kf2 {[%emt 0:01:08]} e5 {[%emt 0:03:16]} 23. Ba6 {[%emt 0:01:24]} Rc7 {[%emt 0:05:55]} 24. Rc1 {[%emt 0:09:43]} Kd6 {[%emt 0:00:50]} 25. Bd3 {[%emt 0:01:52]} a5 {[%emt 0:08:55]} 26. Rb1 {[%emt 0:07:37]} e4 {[%emt 0:10:48]} 27. Be2 {[%emt 0:00:55]} Na7 {[%emt 0:02:40]} 28. Nd2 {[%emt 0:10:59]} Rc2 {[%emt 0:01:40]} 29. Rxb6+ {[%emt 0:00:33]} Kc7 {[%emt 0:00:05]} 30. Ra6 {[%emt 0:00:07]} Nb5 {[%emt 0:10:47]} 31. Ke1 {[%emt 0:06:51]} Rc1+ {[%emt 0:02:42]} 32. Kf2 {[%emt 0:00:07]} 1/2-1/2